fUSD/lending_fUSD_20260407
["ID","MTS","AMOUNT","RATE_DAILY","PERIOD"]
[419972786,1775576716467,150.0,0.00012403,2]
[419972787,1775576716521,150.0,0.00012678,2]
[419972788,1775576716556,150.0,0.00012954,2]
[419972789,1775576720273,150.0,0.00012403,2]
[419972790,1775576722689,150.0,0.00012403,2]
[419972791,1775576724346,150.0,0.00012403,2]
[419972792,1775576724379,150.0,0.00012632,2]
[419972793,1775576724431,150.0,0.00012862,2]
[419972794,1775576727643,150.0,0.00012403,2]
[419972795,1775576736572,150.0,0.00012403,2]
[419972796,1775576736621,150.0,0.00012403,2]
[419972797,1775576737149,150.0,0.00012403,2]
[419972798,1775576737209,150.0,0.00012541,2]
[419972799,1775576737280,150.0,0.00012678,2]
[419972800,1775576737339,150.0,0.00012816,2]
[419972801,1775576737434,150.0,0.00012954,2]
[419972802,1775576771703,248.2,0.00012394,2]
[419972803,1775576796879,2540.07,0.00012375,2]
[419972808,1775577010681,152.0,0.00012862,3]
[419972818,1775577032072,-279.79428379,0.00013024,2]
[419972819,1775577032085,-20.20571621,0.00013024,2]
[419972820,1775577032106,-1079.79428379,0.00013024,2]
[419972821,1775577032127,-120.20571621,0.00013024,2]
[419972822,1775577032137,-691.33877293,0.00013025,2]
[419972823,1775577032147,-11521.58357223,0.00013025,2]
[419972824,1775577032157,-224.66071133,0.00013025,2]
[419972825,1775577032166,-228.16520221,0.00013025,2]
[419972826,1775577032176,-1732.284099,0.00013025,2]
[419972827,1775577032186,-13421.79023844,0.00013025,2]
[419972828,1775577032196,-246.45463359,0.00013025,2]
[419972829,1775577032205,-150.0,0.00013092,2]
[419972830,1775577032214,-150.0,0.00013092,2]
[419972831,1775577032223,-150.0,0.00013092,2]
[419972832,1775577032233,-250.0,0.00013094,2]
[419972833,1775577032243,-5000.0,0.00013096,2]
[419972834,1775577032253,-150.0,0.000131,2]
[419972835,1775577032263,-501.0,0.000131,2]
[419972836,1775577032273,-300.0,0.00013101,2]
[419972837,1775577032284,-300.0,0.00013101,2]
[419972838,1775577032294,-5000.0,0.00013102,2]
[419972839,1775577032303,-2632.34465391,0.00013108,2]
[419972840,1775577032314,-896.68495697,0.00013114,2]
[419972841,1775577032325,-500.0,0.00013123,2]
[419972842,1775577032335,-401.17435506,0.00013123,2]
[419972843,1775577032345,-500.0,0.00013123,2]
[419972844,1775577032355,-439.98849107,0.00013123,2]
[419972845,1775577032364,-500.0,0.00013123,2]
[419972846,1775577032374,-616.87680904,0.00013123,2]
[419972847,1775577032384,-500.0,0.00013123,2]
[419972848,1775577032394,-500.0,0.00013123,2]
[419972849,1775577032404,-500.0,0.00013123,2]
[419972850,1775577032414,-500.0,0.00013123,2]
[419972851,1775577032425,-500.0,0.00013123,2]
[419972852,1775577032435,-500.0,0.00013123,2]
[419972853,1775577032445,-500.0,0.00013123,2]
[419972854,1775577032455,-500.0,0.00013123,2]
[419972856,1775577032464,-500.0,0.00013123,2]
[419972857,1775577032473,-500.0,0.00013123,2]
[419972858,1775577032483,-500.0,0.00013123,2]
[419972859,1775577032493,-500.0,0.00013123,2]
[419972860,1775577032502,-500.0,0.00013123,2]
[419972861,1775577032512,-500.0,0.00013123,2]
[419972862,1775577032522,-500.0,0.00013123,2]
[419972863,1775577032532,-500.0,0.00013123,2]
[419972864,1775577032542,-500.0,0.00013123,2]
[419972866,1775577032552,-500.0,0.00013123,2]
[419972868,1775577032562,-500.0,0.00013123,2]
[419972870,1775577032572,-495.08456116,0.00013123,2]
[419972872,1775577032582,-150.0,0.00013123,2]
[419972874,1775577032592,-92493.50147071,0.00013124,2]
[419972877,1775577032605,-123769.52807356,0.00013124,2]
[419972879,1775577032623,-154651.89134517,0.00013124,2]
[419972882,1775577032635,-157531.59412716,0.00013124,2]
[419972884,1775577032647,-735.86868897,0.00013124,2]
[419972886,1775577032664,-555.59417147,0.00013124,2]
[419972887,1775577032677,-488.47721465,0.00013124,2]
[419972888,1775577032690,-605307.63194282,0.00013124,2]
[419972889,1775577032803,-1661.67558641,0.00013124,2]
[419972890,1775577032830,-1675.51726259,0.00013124,2]
[419972891,1775577032843,-959.2199582,0.00013124,2]
[419972892,1775577032855,-1413.84086943,0.00013124,2]
[419972938,1775577039407,-82666.32410323,0.00013124,2]
[419972941,1775577039425,-1276089.33518563,0.00013124,2]
[419972943,1775577039435,-10255.0859,0.00013125,2]
[419972945,1775577039445,-558370.2556,0.00013125,2]
[419972947,1775577039454,-500.0,0.00013125,2]
[419972948,1775577039464,-500.0,0.00013173,2]
[419972950,1775577039474,-500.0,0.00013173,2]
[419972952,1775577039483,-500.0,0.00013173,2]
[419972954,1775577039493,-500.0,0.00013173,2]
[419972956,1775577039503,-199.90943792,0.00013173,2]
[419972958,1775577039512,-500.0,0.00013173,2]
[419972960,1775577039522,-500.0,0.00013173,2]
[419972961,1775577039532,-500.0,0.00013173,2]
[419972963,1775577039541,-500.0,0.00013173,2]
[419972965,1775577039550,-500.0,0.00013173,2]
[419972967,1775577039560,-501.03587191,0.00013173,2]
[419972969,1775577039570,-500.0,0.00013173,2]
[419972971,1775577039580,-150.0,0.00013223,2]
[419972973,1775577039589,-150.0,0.00013224,2]
[419972976,1775577039599,-8526.8686638,0.00013224,2]
[419972977,1775577039609,-150.0,0.00013224,2]
[419972979,1775577039618,-4615.917,0.00013224,2]
[419972981,1775577039629,-243.354,0.00013224,2]
[419972983,1775577039639,-5000.0,0.00013225,2]
[419972985,1775577039649,-150.0,0.0001323,2]
[419972988,1775577039661,-150.0,0.0001323,2]
[419972990,1775577039671,-421.0046841,0.00013273,2]
[419972992,1775577039681,-200.0,0.00013317,2]
[419972993,1775577039691,-1199.20597015,0.00013317,2]
[419972995,1775577039701,-150.0,0.00013321,2]
[419972997,1775577039710,-150.0,0.00013321,2]
[419972999,1775577039720,-151.0,0.00013322,2]
[419973001,1775577039729,-256.0922767,0.00013324,2]
[419973003,1775577039739,-11521.58357223,0.00013344,2]
[419973005,1775577039749,-150.0,0.00013367,2]
[419973007,1775577039759,-500.0,0.00013373,2]
[419973009,1775577039769,-500.0,0.00013399,2]
[419973011,1775577039778,-500.0,0.00013425,2]
[419973013,1775577039788,-500.0,0.00013425,2]
[419973015,1775577039798,-500.0,0.00013425,2]
[419973017,1775577039808,-500.0,0.00013425,2]
[419973019,1775577039817,-500.0,0.00013425,2]
[419973021,1775577039827,-500.0,0.00013425,2]
[419973023,1775577039836,-500.0,0.00013425,2]
[419973025,1775577039846,-594.20670319,0.00013425,2]
[419973027,1775577039856,-150.0,0.00013425,2]
[419973029,1775577039866,-150.0,0.00013425,2]
[419973031,1775577039876,-150.0,0.00013425,2]
[419973033,1775577039886,-181.70252141,0.00013425,2]
[419973035,1775577039896,-150.7184852,0.00013425,2]
[419973037,1775577039906,-500.0,0.00013425,2]
[419973077,1775577040309,-500.0,0.00013425,2]
[419973079,1775577040319,-500.0,0.00013425,2]
[419973081,1775577040328,-500.0,0.00013425,2]
[419973083,1775577040338,-500.0,0.00013425,2]
[419973086,1775577040348,-500.0,0.00013425,2]
[419973089,1775577040359,-500.0,0.00013425,2]
[419973091,1775577040368,-500.0,0.00013425,2]
[419973093,1775577040377,-500.0,0.00013425,2]
[419973095,1775577040387,-500.0,0.00013425,2]
[419973097,1775577040397,-500.0,0.00013425,2]
[419973100,1775577040407,-500.0,0.00013425,2]
[419973103,1775577040417,-500.0,0.00013425,2]
[419973105,1775577040426,-397.72162059,0.00013425,2]
[419973107,1775577040435,-188.64365037,0.00013425,2]
[419973109,1775577040445,-500.0,0.00013425,2]
[419973110,1775577040455,-500.0,0.00013425,2]
[419973112,1775577040465,-500.0,0.00013425,2]
[419973114,1775577040475,-385.20384257,0.00013425,2]
[419973116,1775577040484,-337.97015847,0.00013425,2]
[419973118,1775577040493,-500.0,0.00013425,2]
[419973120,1775577040502,-150.0,0.00013425,2]
[419973122,1775577040512,-500.0,0.00013425,2]
[419973124,1775577040522,-500.0,0.00013425,2]
[419973126,1775577040532,-150.0,0.00013425,2]
[419973128,1775577040541,-500.0,0.00013425,2]
[419973130,1775577040550,-500.01643822,0.00013425,2]
[419973132,1775577040559,-287.9956919,0.00013425,2]
[419973134,1775577040569,-500.0,0.00013425,2]
[419973136,1775577040578,-500.0,0.00013425,2]
[419973138,1775577040588,-500.0,0.00013425,2]
[419973140,1775577040598,-500.0,0.00013425,2]
[419973141,1775577040608,-500.0,0.00013425,2]
[419973143,1775577040618,-500.0,0.00013425,2]
[419973145,1775577040629,-500.0,0.00013425,2]
[419973148,1775577040640,-500.0,0.00013425,2]
[419973149,1775577040650,-249.62,0.00013425,2]
[419973151,1775577040660,-500.0,0.00013425,2]
[419973154,1775577040672,-436.48877466,0.00013425,2]
[419973155,1775577040682,-500.0,0.00013425,2]
[419973157,1775577040692,-500.0,0.00013425,2]
[419973159,1775577040702,-530.88186197,0.00013425,2]
[419973161,1775577040712,-500.0,0.00013425,2]
[419973163,1775577040721,-500.0,0.00013425,2]
[419973165,1775577040731,-500.0,0.00013425,2]
[419973167,1775577040740,-500.0,0.00013425,2]
[419973169,1775577040749,-500.0,0.00013425,2]
[419973171,1775577040759,-516.75450482,0.00013425,2]
[419973173,1775577040768,-500.0,0.00013425,2]
[419973175,1775577040779,-278.57606632,0.00013425,2]
[419973177,1775577040789,-500.0,0.00013425,2]
[419973179,1775577040799,-500.0,0.00013425,2]
[419973181,1775577040810,-500.0,0.00013425,2]
[419973183,1775577040820,-500.0,0.00013425,2]
[419973185,1775577040830,-500.0,0.00013425,2]
[419973187,1775577040840,-642.81768611,0.00013425,2]
[419973189,1775577040850,-500.0,0.00013425,2]
[419973191,1775577040859,-500.0,0.00013425,2]
[419973193,1775577040869,-500.0,0.00013425,2]
[419973195,1775577040880,-500.0,0.00013425,2]
[419973197,1775577040889,-500.0,0.00013425,2]
[419973199,1775577040899,-500.0,0.00013425,2]
[419973201,1775577040908,-345.22023393,0.00013425,2]
[419973204,1775577040918,-500.0,0.00013425,2]
[419973206,1775577040928,-500.0,0.00013425,2]
[419973208,1775577040938,-500.0,0.00013425,2]
[419973210,1775577040947,-408.98301836,0.00013425,2]
[419973212,1775577040957,-500.0,0.00013425,2]
[419973214,1775577040967,-414.12404802,0.00013425,2]
[419973216,1775577040976,-150.0,0.00013425,2]
[419973218,1775577040986,-500.0,0.00013425,2]
[419973220,1775577040996,-500.0,0.00013425,2]
[419973222,1775577041006,-266.52915409,0.00013425,2]
[419973224,1775577041016,-153.24085071,0.00013425,2]
[419973226,1775577041026,-500.0,0.00013425,2]
[419973228,1775577041036,-500.0,0.00013425,2]
[419973229,1775577041046,-500.0,0.00013425,2]
[419973231,1775577041056,-500.0,0.00013425,2]
[419973233,1775577041066,-500.0,0.00013425,2]
[419973235,1775577041075,-500.0,0.00013425,2]
[419973237,1775577041085,-500.0,0.00013425,2]
[419973239,1775577041094,-500.0,0.00013425,2]
[419973241,1775577041104,-232.18984881,0.00013425,2]
[419973243,1775577041114,-500.0,0.00013425,2]
[419973245,1775577041124,-500.0,0.00013425,2]
[419973247,1775577041134,-500.0,0.00013425,2]
[419973249,1775577041144,-499.0702747,0.00013425,2]
[419973251,1775577041155,-150.0,0.00013425,2]
[419973253,1775577041165,-500.0,0.00013425,2]
[419973255,1775577041175,-500.0,0.00013425,2]
[419973257,1775577041186,-500.0,0.00013425,2]
[419973259,1775577041195,-500.0,0.00013425,2]
[419973261,1775577041205,-500.0,0.00013425,2]
[419973263,1775577041215,-500.0,0.00013425,2]
[419973265,1775577041225,-500.0,0.00013425,2]
[419973267,1775577041235,-500.0,0.00013425,2]
[419973269,1775577041245,-500.0,0.00013425,2]
[419973271,1775577041255,-500.0,0.00013425,2]
[419973273,1775577041265,-500.0,0.00013425,2]
[419973275,1775577041275,-500.0,0.00013425,2]
[419973277,1775577041284,-500.0,0.00013425,2]
[419973279,1775577041295,-500.0,0.00013425,2]
[419973281,1775577041305,-500.0,0.00013425,2]
[419973283,1775577041314,-500.0,0.00013425,2]
[419973285,1775577041325,-329.41546349,0.00013425,2]
[419973287,1775577041336,-500.0,0.00013425,2]
[419973289,1775577041347,-500.0,0.00013425,2]
[419973291,1775577041357,-500.0,0.00013425,2]
[419973293,1775577041367,-500.0,0.00013425,2]
[419973295,1775577041378,-500.0,0.00013425,2]
[419973296,1775577041390,-500.0,0.00013425,2]
[419973299,1775577041400,-500.0,0.00013425,2]
[419973301,1775577041410,-500.0,0.00013425,2]
[419973303,1775577041420,-500.0,0.00013425,2]
[419973304,1775577041429,-500.0,0.00013425,2]
[419973306,1775577041438,-500.0,0.00013425,2]
[419973308,1775577041448,-379.35266898,0.00013425,2]
[419973310,1775577041457,-1538.0,0.00013425,2]
[419973312,1775577041466,-150.0,0.00013425,2]
[419973314,1775577041475,-500.0,0.00013425,2]
[419973316,1775577041484,-1538.0,0.00013425,2]
[419973318,1775577041494,-256.32549117,0.00013425,2]
[419973320,1775577041503,-500.0,0.00013425,2]
[419973322,1775577041512,-1538.0,0.00013425,2]
[419973324,1775577041520,-500.0,0.00013425,2]
[419973326,1775577041529,-500.0,0.00013425,2]
[419973328,1775577041538,-1538.0,0.00013425,2]
[419973329,1775577041548,-500.0,0.00013425,2]
[419973331,1775577041557,-1538.0,0.00013425,2]
[419973333,1775577041566,-500.0,0.00013425,2]
[419973335,1775577041575,-1538.0,0.00013425,2]
[419973337,1775577041584,-500.0,0.00013425,2]
[419973339,1775577041594,-1538.0,0.00013425,2]
[419973341,1775577041604,-500.0,0.00013425,2]
[419973343,1775577041613,-500.0,0.00013425,2]
[419973345,1775577041623,-1538.0,0.00013425,2]
[419973347,1775577041633,-360.01646101,0.00013425,2]
[419973349,1775577041643,-1538.0,0.00013425,2]
[419973351,1775577041653,-1538.0,0.00013425,2]
[419973352,1775577041663,-1538.0,0.00013425,2]
[419973354,1775577041674,-1538.0,0.00013425,2]
[419973356,1775577041685,-1538.0,0.00013425,2]
[419973359,1775577041697,-1538.0,0.00013425,2]
[419973360,1775577041707,-1538.0,0.00013425,2]
[419973362,1775577041717,-1538.0,0.00013425,2]
[419973364,1775577041727,-1538.0,0.00013425,2]
[419973366,1775577041737,-1538.0,0.00013425,2]
[419973368,1775577041747,-1538.0,0.00013425,2]
[419973370,1775577041757,-1538.0,0.00013425,2]
[419973372,1775577041767,-1538.0,0.00013425,2]
[419973374,1775577041777,-1538.0,0.00013425,2]
[419973376,1775577041787,-1538.0,0.00013425,2]
[419973378,1775577041798,-1553.30229004,0.00013425,2]
[419973380,1775577041809,-691.33877291,0.00013436,2]
[419973382,1775577041819,-434.0,0.00013451,2]
[419973384,1775577041829,-413.0,0.00013463,2]
[419973386,1775577041839,-150.0,0.000135,2]
[419973388,1775577041848,-228.16520217,0.00013504,2]
[419973390,1775577041859,-150.0,0.00013505,2]
[419973392,1775577041868,-150.0,0.00013505,2]
[419973394,1775577041877,-150.0,0.00013551,2]
[419973396,1775577041888,-445.62487172,0.00013622,2]
[419973398,1775577041898,-150.0,0.00013643,2]
[419973400,1775577041908,-11521.58357223,0.00013664,2]
[419973402,1775577041918,-500.0,0.00013673,2]
[419973404,1775577041928,-500.0,0.00013698,2]
[419973406,1775577041937,-300.73076034,0.00013698,2]
[419973408,1775577041947,-500.0,0.00013698,2]
[419973410,1775577041957,-500.0,0.00013698,2]
[419973412,1775577041967,-500.0,0.00013698,2]
[419973414,1775577041977,-500.0,0.00013698,2]
[419973416,1775577041986,-500.0,0.00013698,2]
[419973418,1775577041996,-500.0,0.00013698,2]
[419973420,1775577042006,-500.0,0.00013698,2]
[419973422,1775577042017,-500.0,0.00013698,2]
[419973424,1775577042027,-500.0,0.00013698,2]
[419973426,1775577042037,-500.0,0.00013698,2]
[419973428,1775577042047,-246.93074398,0.00013698,2]
[419973430,1775577042057,-500.0,0.00013698,2]
[419973432,1775577042067,-500.0,0.00013698,2]
[419973434,1775577042077,-500.0,0.00013698,2]
[419973436,1775577042087,-500.0,0.00013698,2]
[419973438,1775577042097,-391.39016199,0.00013698,2]
[419973440,1775577042108,-249.62,0.00013699,2]
[419973442,1775577042118,-10000.0,0.000137,2]
[419973444,1775577042127,-178.96,0.000137,2]
[419973446,1775577042136,-178.96,0.000137,2]
[419973448,1775577042146,-1000.0,0.00013721,2]
[419973450,1775577042156,-500.0,0.00013721,2]
[419973452,1775577042166,-500.0,0.00013721,2]
[419973454,1775577042176,-503.19697935,0.00013721,2]
[419973456,1775577042186,-1000.0,0.00013721,2]
[419973458,1775577042196,-1000.0,0.00013721,2]
[419973460,1775577042206,-1000.0,0.00013721,2]
[419973462,1775577042216,-500.0,0.00013721,2]
[419973464,1775577042225,-500.0,0.00013721,2]
[419973466,1775577042235,-266.0,0.00013737,2]
[419973468,1775577042245,-1000.0,0.00013759,2]
[419973470,1775577042254,-879.0,0.00013762,2]
[419973471,1775577042264,-500.0,0.00013773,2]
[419973474,1775577042274,-500.0,0.00013773,2]
[419973475,1775577042283,-500.0,0.00013773,2]
[419973477,1775577042294,-500.0,0.00013773,2]
[419973479,1775577042304,-155.74758483,0.00013781,2]
[419973481,1775577042314,-150.0,0.00013781,2]
[419973483,1775577042324,-150.0,0.00013781,2]
[419973484,1775577042334,-150.0,0.00013781,2]
[419973486,1775577042344,-183.75838561,0.00013781,2]
[419973488,1775577042354,-150.0,0.00013781,2]
[419973490,1775577042363,-150.0,0.00013781,2]
[419973492,1775577042373,-896.68495697,0.0001379,2]
[419973493,1775577042383,-342831.7,0.000138,2]
[419973494,1775577042393,-691.33877291,0.00013846,2]
[419973495,1775577042402,-1877.0,0.0001386,2]
[419973496,1775577042412,-325.67572742,0.00013865,2]
[419973497,1775577042421,-1912.0,0.00013887,2]
[419973498,1775577042431,-1162.0,0.00013915,2]
[419973499,1775577042441,-1000.0,0.00013921,2]
[419973500,1775577042452,-278.4,0.00013926,2]
[419973501,1775577042462,-537.2,0.00013938,2]
[419973502,1775577042472,-500.0,0.00013938,2]
[419973503,1775577042482,-990.28,0.00013938,2]
[419973504,1775577042491,-461.0,0.00013943,2]
[419973505,1775577042500,-500.0,0.00013947,2]
[419973506,1775577042510,-249.64,0.00013973,2]
[419973507,1775577042520,-160.0,0.00013976,2]
[419973508,1775577042530,-11521.58357223,0.00013983,2]
[419973509,1775577042539,-228.16520217,0.00013983,2]
[419973510,1775577042549,-700.0,0.00014082,2]
[419973511,1775577042559,-1400.0,0.00014082,2]
[419973512,1775577042569,-237.59,0.00014133,2]
[419973513,1775577042578,-990.28,0.00014133,2]
[419973514,1775577042588,-990.28,0.00014133,2]
[419973515,1775577042598,-990.28,0.00014133,2]
[419973516,1775577042609,-990.28,0.00014133,2]
[419973517,1775577042619,-990.28,0.00014133,2]
[419973518,1775577042630,-990.28,0.00014133,2]
[419973519,1775577042640,-990.28,0.00014133,2]
[419973520,1775577042650,-990.28,0.00014133,2]
[419973521,1775577042660,-990.28,0.00014133,2]
[419973522,1775577042670,-990.28,0.00014133,2]
[419973524,1775577042680,-435.41258,0.00014173,7]
[419973526,1775577042690,-501.0,0.00014197,2]
[419973528,1775577042700,-990.28,0.00014199,2]
[419973530,1775577042710,-990.28,0.00014199,2]
[419973532,1775577042721,-500.0,0.00014221,2]
[419973534,1775577042732,-255.0,0.00014225,2]
[419973536,1775577042742,-691.33877291,0.00014257,2]
[419973538,1775577042752,-1500.0,0.00014268,2]
[419973540,1775577042763,-1500.0,0.00014268,2]
[419973542,1775577042773,-1000.0,0.00014268,2]
[419973544,1775577042783,-420.0,0.00014283,2]
[419973546,1775577042793,-181.835254,0.00014292,7]
[419973547,1775577042803,-160.0,0.00014292,2]
[419973549,1775577042813,-503.091468,0.00014292,2]
[419973551,1775577042823,-846.182936,0.00014292,2]
[419973553,1775577042833,-623.58710448,0.00014297,2]
[419973555,1775577042842,-1235.18214925,0.00014297,2]
[419973558,1775577042852,-500.0,0.00014297,2]
[419973560,1775577042862,-8260.13072239,0.00014297,2]
[419973562,1775577042873,-174.61919141,0.00014297,2]
[419973565,1775577042885,-151.0,0.00014297,2]
[419973567,1775577042895,-798.52727141,0.00014297,2]
[419973569,1775577042906,-411.57624402,0.00014297,2]
[419973570,1775577042917,-990.28,0.00014299,2]
[419973572,1775577042927,-150.0,0.000143,2]
[419973574,1775577042938,-232.00571695,0.000143,2]
[419973576,1775577042947,-11521.58357223,0.00014303,2]
[419973578,1775577042958,-500.0,0.00014321,2]
[419973580,1775577042968,-361.43877969,0.00014321,2]
[419973583,1775577042979,-500.0,0.00014321,2]
[419973584,1775577042989,-500.0,0.00014321,2]
[419973586,1775577042999,-1680.0,0.00014326,2]
[419973588,1775577043010,-2500.0,0.00014328,2]
[419973592,1775577043020,-2500.0,0.00014328,2]
[419973595,1775577043031,-2500.0,0.00014328,2]
[419973597,1775577043042,-2500.0,0.00014328,2]
[419973599,1775577043052,-2500.0,0.00014328,2]
[419973601,1775577043063,-300.0,0.00014328,2]
[419973603,1775577043074,-300.0,0.00014328,2]
[419973605,1775577043084,-300.0,0.00014328,2]
[419973607,1775577043095,-300.0,0.00014328,2]
[419973609,1775577043105,-356.43990232,0.00014328,2]
[419973611,1775577043116,-160.0,0.0001433,7]
[419973613,1775577043126,-551.389806,0.0001433,7]
[419973617,1775577043137,-942.779612,0.0001433,7]
[419973621,1775577043148,-500.0,0.00014352,2]
[419973625,1775577043159,-4638.35391231,0.00014352,2]
[419973628,1775577043170,-151.0,0.00014352,2]
[419973632,1775577043181,-500.0,0.00014356,2]
[419973634,1775577043192,-420.0,0.00014365,2]
[419973636,1775577043202,-2812.0,0.000144,2]
[419973638,1775577043213,-1573.0,0.000144,2]
[419973640,1775577043224,-5000.0,0.00014401,2]
[419973642,1775577043236,-200.0,0.00014401,2]
[419973646,1775577043248,-250.0,0.00014401,2]
[419973648,1775577043260,-150.0,0.00014401,2]
[419973649,1775577043270,-205.00212077,0.00014401,2]
[419973651,1775577043281,-5000.0,0.0001441,2]
[419973653,1775577043291,-500.0,0.0001441,2]
[419973655,1775577043302,-500.0,0.0001441,2]
[419973657,1775577043313,-500.0,0.0001441,2]
[419973659,1775577043325,-500.0,0.0001441,2]
[419973662,1775577043336,-500.0,0.0001441,2]
[419973664,1775577043348,-250.0,0.0001441,2]
[419973666,1775577043358,-1732.28409899,0.00014463,2]
[419973668,1775577043370,-228.16520217,0.00014463,2]
[419973670,1775577043382,-13421.79023843,0.00014463,2]
[419973672,1775577043393,-246.45463358,0.00014463,2]
[419973674,1775577043403,-391.29868191,0.00014468,2]
[419973676,1775577043414,-500.0,0.00014495,2]
[419973678,1775577043427,-421.00468409,0.00014587,2]
[419973680,1775577043438,-11521.58357223,0.00014622,2]
[419973682,1775577043448,-691.33877291,0.00014668,2]
[419973684,1775577043460,-167.0713,0.000147,2]
[419973686,1775577043471,-785.92,0.00014703,2]
[419973688,1775577043481,-1573.0,0.0001472,2]
[419973690,1775577043492,-1600.0,0.00014732,2]
[419973692,1775577043502,-2000.0,0.00014767,2]
[419973694,1775577043514,-500.0,0.00014768,2]
[419973696,1775577043525,-234.397006,0.00014784,7]
[419973698,1775577043536,-160.0,0.00014784,7]
[419973700,1775577043546,-267.467937,0.00014784,7]
[419973702,1775577043557,-374.935875,0.00014784,7]
[419973704,1775577043567,-2000.0,0.00014816,2]
[419973706,1775577043578,-2000.0,0.00014816,2]
[419973708,1775577043590,-1280.88388878,0.00014845,2]
[419973710,1775577043601,-181.08010149,0.00014845,2]
[419973712,1775577043612,-208.0,0.00014852,5]
[419973714,1775577043623,-197.914809,0.00014882,7]
[419973716,1775577043633,-152.09808365,0.000149,2]
[419973718,1775577043644,-11521.58357223,0.00014942,2]
[419973720,1775577043655,-228.16520217,0.00014942,2]
[419973722,1775577043666,-785.92,0.00014977,2]
[419973724,1775577043676,-951.0,0.00015,2]
[419973725,1775577043686,-300.0,0.00015,2]
[419973727,1775577043696,-1029.05073,0.00015006,2]
[419973729,1775577043706,-751.89519,0.00015046,7]
[419973731,1775577043717,-493.54914906,0.00015068,2]
[419973733,1775577043728,-691.33877291,0.00015079,2]
[419973735,1775577043739,-1347.0,0.00015086,2]
[419973737,1775577043749,-1050.137,0.00015086,2]
[419973739,1775577043761,-622.0,0.00015086,2]
[419973741,1775577043772,-1264.0,0.00015086,2]
[419973743,1775577043783,-415.0,0.00015086,2]
[419973745,1775577043794,-3804.93,0.00015086,2]
[419973747,1775577043805,-10000.0,0.00015205,2]
[419973749,1775577043817,-155.0,0.00015225,2]
[419973751,1775577043827,-500.0,0.00015226,2]
[419973753,1775577043838,-500.0,0.00015226,2]
[419973755,1775577043849,-500.0,0.00015226,2]
[419973757,1775577043859,-500.0,0.00015226,2]
[419973759,1775577043869,-571.50758087,0.00015226,2]
[419973761,1775577043879,-209.92,0.00015251,2]
[419973763,1775577043889,-11521.58357223,0.00015261,2]
[419973765,1775577043899,-990.28,0.00015277,2]
[419973767,1775577043909,-501.0,0.00015293,3]
[419973769,1775577043919,-2683.33576369,0.00015301,2]
[419973771,1775577043929,-471.17338,0.0001531,2]
[419973774,1775577043943,-844.41026538,0.0001532,2]
[419973776,1775577043953,-328.33583591,0.0001532,2]
[419973778,1775577043963,-1573.0,0.0001536,2]
[419973780,1775577043973,-2812.0,0.0001536,2]
[419973782,1775577043984,-1573.0,0.0001536,2]
[419973783,1775577043993,-2079.0,0.0001536,2]
[419973785,1775577044004,-513.22099072,0.00015364,2]
[419973787,1775577044014,-2000.0,0.00015364,2]
[419973790,1775577044024,-8425.49894113,0.00015393,2]
[419973792,1775577044035,-1328.27659266,0.00015393,2]